Employee Name,Substantive Rank,Date Expense Incurred,Expense Type,Line Item Description,Line Amount
3* and above,,,,,
"COULTER, DAVID GEORGE",Chaplain General,22/02/2017,Other Duty Travel,Subsistence Allowance,79.35
"COULTER, DAVID GEORGE",Chaplain General,08/03/2017,Other Duty Travel,Subsistence Allowance,103
"COULTER, DAVID GEORGE",Chaplain General,27/02/2017,Other Duty Travel,Subsistence Allowance,90.94
"COULTER, DAVID GEORGE",Chaplain General,02/03/2017,Other Duty Travel,Subsistence Allowance,96.5
"CARTER, NICHOLAS PATRICK",General,24/01/2017,Other Duty Travel,Subsistence Allowance,25
"CARTER, NICHOLAS PATRICK",General,01/02/2017,Other Duty Travel,Subsistence Allowance,25
"EVERARD, JAMES RUPERT",General,16/03/2017,Other Duty Travel,Congestion Charge,11.5
"EVERARD, JAMES RUPERT",General,16/03/2017,Change of Assignment,Motor Mileage Allowance,148
"EVERARD, JAMES RUPERT",General,16/03/2017,Change of Assignment,Rail Fare,216
"EVERARD, JAMES RUPERT",General,16/03/2017,Change of Assignment,Subsistence Allowance,99.01
"MESSENGER, GORDON KENNETH",General,20/09/2016,Miscellaneous,Utility Charges,30
"MESSENGER, GORDON KENNETH",General,19/10/2016,Miscellaneous,Utility Charges,18.99
"MESSENGER, GORDON KENNETH",General,19/11/2016,Miscellaneous,Utility Charges,18.99
"MESSENGER, GORDON KENNETH",General,19/12/2016,Miscellaneous,Utility Charges,18.99
"MESSENGER, GORDON KENNETH",General,19/01/2017,Miscellaneous,Utility Charges,18.99
"LISTER, SIMON ROBERT",Vice-Admiral,18/02/2017,Other Duty Travel,Subsistence Allowance,18.9
"LISTER, SIMON ROBERT",Vice-Admiral,26/02/2017,Other Duty Travel,Subsistence Allowance,69.98
"POTTS, DUNCAN L",Vice-Admiral,12/12/2016,Other Duty Travel,Subsistence Allowance,79
"POTTS, DUNCAN L",Vice-Admiral,22/11/2016,Other Duty Travel,Subsistence Allowance,41.55
"POTTS, DUNCAN L",Vice-Admiral,13/12/2016,Other Duty Travel,Bus Fare,5
"POTTS, DUNCAN L",Vice-Admiral,13/12/2016,Other Duty Travel,Subsistence Allowance,175.36
"POTTS, DUNCAN L",Vice-Admiral,15/12/2016,Other Duty Travel,Foreign Currency Exch Costs,5.53
"BECKETT, THOMAS ANTHONY",Lieutenant General,10/02/2017,Other Duty Travel,Subsistence Allowance,43.35
"NUGEE, RICHARD EDWARD",Lieutenant General,24/10/2016,Other Duty Travel,Subsistence Allowance,44.27
"POPE, NICHOLAS ARTHUR WILLIAM",Lieutenant General,20/03/2017,Other Duty Travel,Subsistence Allowance,142.1
"RADFORD, TIMOTHY BUCHAN",Lieutenant General,18/01/2017,Advances,Adv of Travel & Subsistence,150
"RADFORD, TIMOTHY BUCHAN",Lieutenant General,24/01/2017,Other Duty Travel,Subsistence Allowance,200
"RADFORD, TIMOTHY BUCHAN",Lieutenant General,21/02/2017,Other Duty Travel,Subsistence Allowance,223.3
"RADFORD, TIMOTHY BUCHAN",Lieutenant General,10/02/2017,Advances,Adv of Travel & Subsistence,330
"RADFORD, TIMOTHY BUCHAN",Lieutenant General,20/03/2017,Other Duty Travel,Subsistence Allowance,85
"RADFORD, TIMOTHY BUCHAN",Lieutenant General,23/03/2017,Other Duty Travel,Subsistence Allowance,206.78
"RADFORD, TIMOTHY BUCHAN",Lieutenant General,08/03/2017,Other Duty Travel,Subsistence Allowance,67.8
"RADFORD, TIMOTHY BUCHAN",Lieutenant General,23/02/2017,Other Duty Travel,Subsistence Allowance,76.15
"SANDERS, PATRICK NICHOLAS YARDLEY MONRAD",Lieutenant General,22/02/2017,Other Duty Travel,NS - Private Arrangements Rate,35
"SANDERS, PATRICK NICHOLAS YARDLEY MONRAD",Lieutenant General,09/02/2017,Other Duty Travel,NS - Private Arrangements Rate,35
"SANDERS, PATRICK NICHOLAS YARDLEY MONRAD",Lieutenant General,07/03/2017,Other Duty Travel,Taxi Fare,30.51
"SANDERS, PATRICK NICHOLAS YARDLEY MONRAD",Lieutenant General,19/01/2017,Other Duty Travel,Taxi Fare,14
"GARWOOD, RICHARD FRANK",Air Marshal,12/04/2016,Miscellaneous,Utility Charges,191.9
"GARWOOD, RICHARD FRANK",Air Marshal,30/01/2017,Other Duty Travel,Taxi Fare,10
"YOUNG, JULIAN ALEXANDER",Air Marshal,27/09/2016,Other Duty Travel,Subsistence Allowance,276.69
"YOUNG, JULIAN ALEXANDER",Air Marshal,27/09/2016,Other Duty Travel,Taxi Fare,16.6
"YOUNG, JULIAN ALEXANDER",Air Marshal,29/09/2016,Other Duty Travel,Taxi Fare,14.47
"YOUNG, JULIAN ALEXANDER",Air Marshal,26/02/2017,Other Duty Travel,Subsistence Allowance,85.76
"YOUNG, JULIAN ALEXANDER",Air Marshal,22/09/2016,Other Duty Travel,Subsistence Allowance,11.68
"YOUNG, JULIAN ALEXANDER",Air Marshal,23/11/2016,Other Duty Travel,Subsistence Allowance,13.56
"YOUNG, JULIAN ALEXANDER",Air Marshal,28/11/2016,Other Duty Travel,Subsistence Allowance,125.44
"YOUNG, JULIAN ALEXANDER",Air Marshal,29/11/2016,Other Duty Travel,Subsistence Allowance,119.37
"YOUNG, JULIAN ALEXANDER",Air Marshal,01/12/2016,Other Duty Travel,Subsistence Allowance,174.69
"YOUNG, JULIAN ALEXANDER",Air Marshal,02/12/2016,Other Duty Travel,Subsistence Allowance,163.03
"YOUNG, JULIAN ALEXANDER",Air Marshal,30/11/2016,Other Duty Travel,Subsistence Allowance,182.73
"YOUNG, JULIAN ALEXANDER",Air Marshal,21/11/2016,Other Duty Travel,Subsistence Allowance,142.75
"YOUNG, JULIAN ALEXANDER",Air Marshal,22/11/2016,Other Duty Travel,Subsistence Allowance,141.44
"YOUNG, JULIAN ALEXANDER",Air Marshal,22/11/2016,Other Duty Travel,Subsistence Expense,11.9
"YOUNG, JULIAN ALEXANDER",Air Marshal,27/11/2016,Other Duty Travel,Subsistence Allowance,27.99
"YOUNG, JULIAN ALEXANDER",Air Marshal,29/09/2016,Other Duty Travel,Subsistence Allowance,144.07
"YOUNG, JULIAN ALEXANDER",Air Marshal,16/01/2017,Other Duty Travel,Subsistence Allowance,11.34
"YOUNG, JULIAN ALEXANDER",Air Marshal,26/09/2016,Other Duty Travel,Subsistence Allowance,132.2
"YOUNG, JULIAN ALEXANDER",Air Marshal,23/02/2017,Other Duty Travel,Subsistence Allowance,72.03
"YOUNG, JULIAN ALEXANDER",Air Marshal,17/01/2017,Other Duty Travel,Subsistence Allowance,144.6
"YOUNG, JULIAN ALEXANDER",Air Marshal,30/08/2016,Other Duty Travel,Subsistence Allowance,75.9
"YOUNG, JULIAN ALEXANDER",Air Marshal,09/09/2016,Other Duty Travel,Rail Fare,13.2
"YOUNG, JULIAN ALEXANDER",Air Marshal,06/09/2016,Other Duty Travel,Taxi Fare,10
"YOUNG, JULIAN ALEXANDER",Air Marshal,26/09/2016,Other Duty Travel,Rail Fare,6
"YOUNG, JULIAN ALEXANDER",Air Marshal,27/09/2016,Other Duty Travel,Rail Fare,4.9
2*,,,,,
"CHIVERS, PAUL AUSTIN",Rear-Admiral,21/02/2017,Other Duty Travel,Subsistence Allowance,19.34
"CHIVERS, PAUL AUSTIN",Rear-Admiral,16/03/2017,Other Duty Travel,Taxi Fare,18.7
"HODGSON, TIMOTHY CHARLES",Rear-Admiral,25/01/2017,Other Duty Travel,Bus Fare,4.35
"HODGSON, TIMOTHY CHARLES",Rear-Admiral,24/01/2017,Other Duty Travel,Bus Fare,4.35
"HODGSON, TIMOTHY CHARLES",Rear-Admiral,22/11/2016,Other Duty Travel,Taxi Fare,19.19
"HODGSON, TIMOTHY CHARLES",Rear-Admiral,13/10/2016,Other Duty Travel,Bus Fare,1.4
"HODGSON, TIMOTHY CHARLES",Rear-Admiral,08/12/2016,Other Duty Travel,Rail Fare,1.45
"HODGSON, TIMOTHY CHARLES",Rear-Admiral,19/01/2017,Other Duty Travel,Rail Fare,4.3
"HODGSON, TIMOTHY CHARLES",Rear-Admiral,13/10/2016,Other Duty Travel,Rail Fare,2.9
"HODGSON, TIMOTHY CHARLES",Rear-Admiral,08/12/2016,Other Duty Travel,Tube/Underground Fares,4.5
"HODGSON, TIMOTHY CHARLES",Rear-Admiral,22/11/2016,Other Duty Travel,Tube/Underground Fares,1.6
"HODGSON, TIMOTHY CHARLES",Rear-Admiral,29/11/2016,Other Duty Travel,Tube/Underground Fares,3.2
"HODGSON, TIMOTHY CHARLES",Rear-Admiral,25/10/2016,Other Duty Travel,Tube/Underground Fares,4
"HODGSON, TIMOTHY CHARLES",Rear-Admiral,16/01/2017,Other Duty Travel,Taxi Fare,16
"HODGSON, TIMOTHY CHARLES",Rear-Admiral,16/12/2016,Other Duty Travel,Taxi Fare,18.7
"HODGSON, TIMOTHY CHARLES",Rear-Admiral,12/12/2016,Other Duty Travel,Taxi Fare,6
"HODGSON, TIMOTHY CHARLES",Rear-Admiral,08/12/2016,Other Duty Travel,Taxi Fare,18.91
"HODGSON, TIMOTHY CHARLES",Rear-Admiral,06/01/2017,Other Duty Travel,Subsistence Allowance,8.55
"HODGSON, TIMOTHY CHARLES",Rear-Admiral,11/10/2016,Other Duty Travel,Subsistence Allowance,8.94
"HODGSON, TIMOTHY CHARLES",Rear-Admiral,17/01/2017,Other Duty Travel,Subsistence Allowance,120
"HODGSON, TIMOTHY CHARLES",Rear-Admiral,08/12/2016,Other Duty Travel,Bus Fare,0.55
"HODGSON, TIMOTHY CHARLES",Rear-Admiral,07/12/2016,Other Duty Travel,Tube/Underground Fares,2.4
"MACKAY, GRAEME A",Rear-Admiral,22/01/2017,Other Duty Travel,Motor Mileage Allowance,40.25
"ASHMORE, NICHOLAS DAVID",Major General,02/02/2017,Other Duty Travel,Subsistence Allowance,141
"ASHMORE, NICHOLAS DAVID",Major General,03/02/2017,Other Duty Travel,Taxi Fare,9.4
"ASHMORE, NICHOLAS DAVID",Major General,03/02/2017,Other Duty Travel,Tube/Underground Fares,6
"ASHMORE, NICHOLAS DAVID",Major General,02/02/2017,Other Duty Travel,Tube/Underground Fares,6
"ASHMORE, NICHOLAS DAVID",Major General,11/01/2017,Other Duty Travel,Rail Fare,16.2
"ASHMORE, NICHOLAS DAVID",Major General,11/01/2017,Other Duty Travel,Subsistence Allowance,4.85
"ASHMORE, NICHOLAS DAVID",Major General,13/01/2017,Other Duty Travel,Subsistence Allowance,8.45
"ASHMORE, NICHOLAS DAVID",Major General,11/01/2017,Other Duty Travel,Taxi Fare,11.25
"ASHMORE, NICHOLAS DAVID",Major General,12/01/2017,Other Duty Travel,NS - Private Arrangements Rate,35
"ASHMORE, NICHOLAS DAVID",Major General,11/01/2017,Other Duty Travel,Taxi Fare,8
"ASHMORE, NICHOLAS DAVID",Major General,11/01/2017,Other Duty Travel,Tube/Underground Fares,6
"ASHMORE, NICHOLAS DAVID",Major General,27/02/2017,Other Duty Travel,Subsistence Allowance,7.63
"ASHMORE, NICHOLAS DAVID",Major General,27/02/2017,Other Duty Travel,Taxi Fare,10
"ASHMORE, NICHOLAS DAVID",Major General,03/03/2017,Other Duty Travel,Subsistence Allowance,8.83
"ASHMORE, NICHOLAS DAVID",Major General,03/03/2017,Other Duty Travel,Subsistence Allowance,16.17
"ASHMORE, NICHOLAS DAVID",Major General,02/03/2017,Other Duty Travel,Taxi Fare,15.5
"ASHMORE, NICHOLAS DAVID",Major General,10/03/2017,Other Duty Travel,Tube/Underground Fares,6
"ASHMORE, NICHOLAS DAVID",Major General,18/01/2017,Other Duty Travel,Taxi Fare,5.4
"ASHMORE, NICHOLAS DAVID",Major General,25/01/2017,Other Duty Travel,Taxi Fare,10
"ASHMORE, NICHOLAS DAVID",Major General,24/01/2017,Other Duty Travel,Subsistence Allowance,172.72
"ASHMORE, NICHOLAS DAVID",Major General,25/01/2017,Other Duty Travel,Tube/Underground Fares,6
"ASHMORE, NICHOLAS DAVID",Major General,24/01/2017,Other Duty Travel,Tube/Underground Fares,6
"ASHMORE, NICHOLAS DAVID",Major General,24/10/2016,Other Duty Travel,Subsistence Allowance,25
"ASHMORE, NICHOLAS DAVID",Major General,25/10/2016,Other Duty Travel,Subsistence Allowance,25
"ASHMORE, NICHOLAS DAVID",Major General,24/10/2016,Other Duty Travel,Tube/Underground Fares,30.2
"ASHMORE, NICHOLAS DAVID",Major General,25/10/2016,Other Duty Travel,Tube/Underground Fares,15
"ASHMORE, NICHOLAS DAVID",Major General,24/10/2016,Other Duty Travel,Taxi Fare,9.65
"ASHMORE, NICHOLAS DAVID",Major General,25/10/2016,Other Duty Travel,Taxi Fare,9.4
"ASHMORE, NICHOLAS DAVID",Major General,09/03/2017,Other Duty Travel,Tube/Underground Fares,6
"ASHMORE, NICHOLAS DAVID",Major General,29/11/2016,Other Duty Travel,Subsistence Allowance,155
"ASHMORE, NICHOLAS DAVID",Major General,30/11/2016,Other Duty Travel,NS - Private Arrangements Rate,35
"ASHMORE, NICHOLAS DAVID",Major General,09/03/2017,Other Duty Travel,Subsistence Allowance,141.29
"ASHMORE, NICHOLAS DAVID",Major General,02/03/2017,Other Duty Travel,Tube/Underground Fares,6
"ASHMORE, NICHOLAS DAVID",Major General,02/03/2017,Other Duty Travel,Subsistence Allowance,25
"ASHMORE, NICHOLAS DAVID",Major General,03/03/2017,Other Duty Travel,Taxi Fare,9.15
"ASHMORE, NICHOLAS DAVID",Major General,01/12/2016,Other Duty Travel,Taxi Fare,9.65
"ASHMORE, NICHOLAS DAVID",Major General,10/03/2017,Other Duty Travel,Taxi Fare,9.4
"ASHMORE, NICHOLAS DAVID",Major General,02/03/2017,Other Duty Travel,Rail Fare,16.2
"BATHURST, BENJAMIN JOHN",Major General,03/03/2017,Other Duty Travel,Subsistence Allowance,206.65
"BATHURST, BENJAMIN JOHN",Major General,03/03/2017,Other Duty Travel,Bus Fare,10
"BRUCE, ROBERT BERNARD",Major General,28/02/2017,Other Duty Travel,Motor Mileage Allowance,22.71
"CRIPWELL, RICHARD JOHN",Major General,18/02/2017,SCV Non-Warrant Costs,Motor Mileage Allowance,10.35
"CRIPWELL, RICHARD JOHN",Major General,14/12/2016,Other Duty Travel,Taxi Fare,15.41
"CRIPWELL, RICHARD JOHN",Major General,19/02/2017,SCV Non-Warrant Costs,Motor Mileage Allowance,34.41
"CRIPWELL, RICHARD JOHN",Major General,21/12/2016,Other Duty Travel,Taxi Fare,9.03
"CRIPWELL, RICHARD JOHN",Major General,11/02/2017,SCV Non-Warrant Costs,Motor Mileage Allowance,34.41
"CRIPWELL, RICHARD JOHN",Major General,18/01/2017,Other Duty Travel,Taxi Fare,10.48
"CRIPWELL, RICHARD JOHN",Major General,06/09/2016,Other Duty Travel,Taxi Fare,6.41
"CRIPWELL, RICHARD JOHN",Major General,18/01/2017,Other Duty Travel,Taxi Fare,17.03
"CRIPWELL, RICHARD JOHN",Major General,21/12/2016,Other Duty Travel,Taxi Fare,8.32
"CRIPWELL, RICHARD JOHN",Major General,16/01/2017,Other Duty Travel,Rail Fare,44.67
"CRIPWELL, RICHARD JOHN",Major General,18/01/2017,Other Duty Travel,Rail Fare,41.92
"CRIPWELL, RICHARD JOHN",Major General,03/01/2017,SCV Non-Warrant Costs,Motor Mileage Allowance,9.17
"CRIPWELL, RICHARD JOHN",Major General,13/12/2016,SCV Non-Warrant Costs,Motor Mileage Allowance,36.35
"CRIPWELL, RICHARD JOHN",Major General,13/12/2016,SCV Non-Warrant Costs,Motor Mileage Allowance,9.17
"CRIPWELL, RICHARD JOHN",Major General,04/01/2017,SCV Non-Warrant Costs,Motor Mileage Allowance,36.35
"CRIPWELL, RICHARD JOHN",Major General,16/01/2017,Other Duty Travel,Subsistence Allowance,432.3
"CRIPWELL, RICHARD JOHN",Major General,11/02/2017,SCV Non-Warrant Costs,Motor Mileage Allowance,10.35
"GAUNT, MARK JARVIS",Major General,31/01/2017,Other Duty Travel,Subsistence Allowance,127.22
"GAUNT, MARK JARVIS",Major General,29/01/2017,Other Duty Travel,Subsistence Allowance,224.41
"GAUNT, MARK JARVIS",Major General,27/01/2017,Other Duty Travel,Subsistence Allowance,7.38
"GAUNT, MARK JARVIS",Major General,28/02/2017,Other Duty Travel,Subsistence Allowance,166.74
"GAUNT, MARK JARVIS",Major General,20/12/2016,Other Duty Travel,Parking Fees,6
"GAUNT, MARK JARVIS",Major General,01/02/2017,Other Duty Travel,Taxi Fare,25
"HILL, GILES PATRICK",Major General,31/01/2017,Other Duty Travel,Subsistence Allowance,8
"HILL, GILES PATRICK",Major General,11/01/2017,Other Duty Travel,Subsistence Allowance,20.56
"HILL, GILES PATRICK",Major General,12/12/2016,Other Duty Travel,Subsistence Allowance,18.84
"HILL, GILES PATRICK",Major General,17/01/2017,Other Duty Travel,Subsistence Allowance,21.9
"HILL, GILES PATRICK",Major General,21/02/2017,Other Duty Travel,Subsistence Allowance,3.45
"HILL, GILES PATRICK",Major General,21/01/2017,Other Duty Travel,Subsistence Allowance,12.05
"MITCHELL, GERALD IAN",Major General,08/12/2016,Other Duty Travel,Subsistence Allowance,16.74
"MITCHELL, GERALD IAN",Major General,12/12/2016,Other Duty Travel,Subsistence Allowance,18.17
"MITCHELL, GERALD IAN",Major General,05/12/2016,Other Duty Travel,Subsistence Allowance,13.17
"MITCHELL, GERALD IAN",Major General,07/12/2016,Other Duty Travel,Subsistence Allowance,0.87
"MITCHELL, GERALD IAN",Major General,28/11/2016,Other Duty Travel,Taxi Fare,7
"MUNRO, RANALD TORQUIL IAN",Major General,30/01/2017,Other Duty Travel,Subsistence Allowance,366.62
"MUNRO, RANALD TORQUIL IAN",Major General,30/01/2017,Miscellaneous,Host Nation Accomm Charges,68.7
"MUNRO, RANALD TORQUIL IAN",Major General,30/01/2017,Other Duty Travel,Foreign Currency Exch Costs,5.07
"NANSON, PAUL ANTHONY EDWARD",Major General,13/03/2017,Other Duty Travel,Subsistence Allowance,8.06
"NANSON, PAUL ANTHONY EDWARD",Major General,14/03/2017,Other Duty Travel,Subsistence Allowance,30.72
"NANSON, PAUL ANTHONY EDWARD",Major General,18/03/2017,Other Duty Travel,Subsistence Allowance,26.1
"NANSON, PAUL ANTHONY EDWARD",Major General,10/03/2017,Miscellaneous,Passport/Visa Fee,14
"NANSON, PAUL ANTHONY EDWARD",Major General,21/03/2017,Other Duty Travel,Subsistence Allowance,52.17
"NANSON, PAUL ANTHONY EDWARD",Major General,06/03/2017,Other Duty Travel,Subsistence Allowance,16.97
"NANSON, PAUL ANTHONY EDWARD",Major General,19/03/2017,Other Duty Travel,Subsistence Allowance,155.83
"NITSCH, ROBERT MALCOLM BOWSTEAD",Major General,30/01/2017,Other Duty Travel,Subsistence Allowance,212
"NITSCH, ROBERT MALCOLM BOWSTEAD",Major General,15/02/2017,Other Duty Travel,Subsistence Allowance,46.61
"NITSCH, ROBERT MALCOLM BOWSTEAD",Major General,15/02/2017,Other Duty Travel,Subsistence Allowance,10.59
"NITSCH, ROBERT MALCOLM BOWSTEAD",Major General,16/02/2017,Other Duty Travel,Subsistence Allowance,13.9
"NITSCH, ROBERT MALCOLM BOWSTEAD",Major General,01/02/2017,Other Duty Travel,Bus Fare,7.5
"NITSCH, ROBERT MALCOLM BOWSTEAD",Major General,30/01/2017,Other Duty Travel,Bus Fare,7.5
"NITSCH, ROBERT MALCOLM BOWSTEAD",Major General,09/03/2017,Other Duty Travel,Parking Fees,7.7
"NITSCH, ROBERT MALCOLM BOWSTEAD",Major General,30/01/2017,Other Duty Travel,Subsistence Allowance,18.5
"NITSCH, ROBERT MALCOLM BOWSTEAD",Major General,31/01/2017,Other Duty Travel,Subsistence Allowance,24.05
"NITSCH, ROBERT MALCOLM BOWSTEAD",Major General,01/01/2017,Miscellaneous,Prof Body Fees - Mandatory,305.9
"NITSCH, ROBERT MALCOLM BOWSTEAD",Major General,09/03/2017,Other Duty Travel,Rail Fare,71.8
"NITSCH, ROBERT MALCOLM BOWSTEAD",Major General,07/02/2017,Other Duty Travel,Subsistence Allowance,95.83
"NITSCH, ROBERT MALCOLM BOWSTEAD",Major General,08/02/2017,Other Duty Travel,Subsistence Allowance,223.27
"NITSCH, ROBERT MALCOLM BOWSTEAD",Major General,08/02/2017,Other Duty Travel,Excess Fares,20.16
"NITSCH, ROBERT MALCOLM BOWSTEAD",Major General,07/02/2017,Other Duty Travel,Excess Fares,20.16
"NITSCH, ROBERT MALCOLM BOWSTEAD",Major General,06/02/2017,Other Duty Travel,Foreign Currency Exchange Costs,32.26
"NITSCH, ROBERT MALCOLM BOWSTEAD",Major General,06/02/2017,Other Duty Travel,Subsistence Allowance,213.4
"RIDGE, SUSAN KERSTIN",Major General,27/02/2017,Other Duty Travel,Subsistence Allowance,93.4
"SEMPLE, RICHARD JAMES",Major General,26/10/2016,Other Duty Travel,Subsistence Allowance,4.94
"SEMPLE, RICHARD JAMES",Major General,17/01/2017,Other Duty Travel,Subsistence Allowance,15.6
"SEMPLE, RICHARD JAMES",Major General,25/10/2016,Other Duty Travel,Subsistence Allowance,31.93
"SEMPLE, RICHARD JAMES",Major General,01/03/2017,Other Duty Travel,Subsistence Allowance,1.85
"SEMPLE, RICHARD JAMES",Major General,02/11/2016,Other Duty Travel,Subsistence Allowance,10
"SEMPLE, RICHARD JAMES",Major General,01/12/2016,Other Duty Travel,Subsistence Allowance,3.89
"SEMPLE, RICHARD JAMES",Major General,16/12/2016,Other Duty Travel,Subsistence Allowance,4.5
"SEMPLE, RICHARD JAMES",Major General,28/09/2016,Other Duty Travel,Subsistence Allowance,18.26
"SEMPLE, RICHARD JAMES",Major General,02/02/2017,Other Duty Travel,Subsistence Allowance,4.5
"SEMPLE, RICHARD JAMES",Major General,01/02/2017,Other Duty Travel,Subsistence Allowance,4.1
"SEMPLE, RICHARD JAMES",Major General,11/11/2016,Other Duty Travel,Subsistence Allowance,4.35
"SEMPLE, RICHARD JAMES",Major General,16/11/2016,Other Duty Travel,Subsistence Allowance,4.8
"SEMPLE, RICHARD JAMES",Major General,13/12/2016,Other Duty Travel,Subsistence Allowance,3.65
"SEMPLE, RICHARD JAMES",Major General,19/12/2016,Other Duty Travel,Subsistence Allowance,3.75
"SEMPLE, RICHARD JAMES",Major General,20/01/2017,Other Duty Travel,Subsistence Allowance,3.8
"SEMPLE, RICHARD JAMES",Major General,07/02/2017,Other Duty Travel,Subsistence Allowance,4.2
"SEMPLE, RICHARD JAMES",Major General,22/02/2017,Other Duty Travel,Subsistence Allowance,3.9
"SEMPLE, RICHARD JAMES",Major General,30/09/2016,Other Duty Travel,Subsistence Allowance,7.63
"SEMPLE, RICHARD JAMES",Major General,12/03/2017,Other Duty Travel,Bus Fare,10
"SEMPLE, RICHARD JAMES",Major General,13/03/2017,Other Duty Travel,Subsistence Allowance,25
"SEMPLE, RICHARD JAMES",Major General,12/10/2016,Other Duty Travel,Subsistence Allowance,28.86
"SEMPLE, RICHARD JAMES",Major General,28/02/2017,Other Duty Travel,Subsistence Allowance,2.75
"SEMPLE, RICHARD JAMES",Major General,28/09/2016,Other Duty Travel,Subsistence Allowance,1.66
"SKEATES, STUART RICHARD",Major General,20/01/2017,Other Duty Travel,Subsistence Allowance,4.55
"SKEATES, STUART RICHARD",Major General,01/03/2017,Other Duty Travel,Subsistence Allowance,13.16
"SKEATES, STUART RICHARD",Major General,08/02/2017,Other Duty Travel,Subsistence Allowance,7.9
"SKEATES, STUART RICHARD",Major General,26/02/2017,Other Duty Travel,Subsistence Allowance,11.1
"SKEATES, STUART RICHARD",Major General,26/02/2017,Other Duty Travel,Subsistence Allowance,119.77
"SKEATES, STUART RICHARD",Major General,19/01/2017,Other Duty Travel,Subsistence Allowance,5.79
"SKEATES, STUART RICHARD",Major General,03/03/2017,Other Duty Travel,Subsistence Allowance,38.25
"SKEATES, STUART RICHARD",Major General,28/03/2017,Other Duty Travel,Hire Car Duty Fuel Costs,12.23
"SKEATES, STUART RICHARD",Major General,23/01/2017,Other Duty Travel,Rail Fare,22
"SKEATES, STUART RICHARD",Major General,22/02/2017,Other Duty Travel,Subsistence Allowance,7.59
"SKEATES, STUART RICHARD",Major General,16/03/2017,Other Duty Travel,Subsistence Allowance,8.35
"SKEATES, STUART RICHARD",Major General,09/02/2017,Other Duty Travel,Subsistence Allowance,9.1
"SKEATES, STUART RICHARD",Major General,08/02/2017,Other Duty Travel,Subsistence Allowance,9.7
"SKEATES, STUART RICHARD",Major General,20/03/2017,Other Duty Travel,Subsistence Allowance,4.5
"SKEATES, STUART RICHARD",Major General,20/12/2016,Other Duty Travel,Taxi Fare,4.5
"SKEATES, STUART RICHARD",Major General,22/02/2017,Other Duty Travel,Subsistence Allowance,138.22
"SKEATES, STUART RICHARD",Major General,09/03/2017,Other Duty Travel,Subsistence Allowance,90.05
"SKEATES, STUART RICHARD",Major General,09/03/2017,Other Duty Travel,Bus Fare,10
"SKEATES, STUART RICHARD",Major General,29/03/2017,Other Duty Travel,Rail Fare,25
"SKEATES, STUART RICHARD",Major General,13/01/2017,Other Duty Travel,Subsistence Allowance,21
"SKEATES, STUART RICHARD",Major General,20/01/2017,Other Duty Travel,Subsistence Allowance,74.58
"SKEATES, STUART RICHARD",Major General,26/02/2017,Other Duty Travel,Tube/Underground Fares,4.83
"SKEATES, STUART RICHARD",Major General,23/01/2017,Other Duty Travel,Subsistence Allowance,220.44
"SKEATES, STUART RICHARD",Major General,26/03/2017,Other Duty Travel,Subsistence Allowance,181.57
"SKEATES, STUART RICHARD",Major General,20/12/2016,Other Duty Travel,Subsistence Allowance,5.75
"SKEATES, STUART RICHARD",Major General,13/12/2016,Other Duty Travel,Subsistence Allowance,6.1
"STANFORD, RICHARD JAMES AETHELSTAN",Major General,01/12/2016,Other Duty Travel,Subsistence Allowance,68.99
"STANFORD, RICHARD JAMES AETHELSTAN",Major General,30/01/2017,Other Duty Travel,Subsistence Allowance,243.65
"STANFORD, RICHARD JAMES AETHELSTAN",Major General,29/11/2016,Other Duty Travel,Subsistence Allowance,105.7
"STANFORD, RICHARD JAMES AETHELSTAN",Major General,30/01/2017,Other Duty Travel,Bus Fare,10
"STANFORD, RICHARD JAMES AETHELSTAN",Major General,15/02/2017,Other Duty Travel,Subsistence Allowance,9.2
"SWIFT, JAMES FRANCIS PARDOE",Major General,29/03/2017,Other Duty Travel,Tube/Underground Fares,4.9
"TALBOT-RICE, ROBERT HARRY",Major General,13/12/2016,Other Duty Travel,Subsistence Allowance,207
"TALBOT-RICE, ROBERT HARRY",Major General,21/03/2017,Other Duty Travel,Subsistence Allowance,19.32
"TALBOT-RICE, ROBERT HARRY",Major General,09/02/2017,Other Duty Travel,Subsistence Allowance,390.69
"TALBOT-RICE, ROBERT HARRY",Major General,23/01/2017,Other Duty Travel,Subsistence Allowance,124
"TALBOT-RICE, ROBERT HARRY",Major General,25/01/2017,Other Duty Travel,Subsistence Allowance,3.1
"TALBOT-RICE, ROBERT HARRY",Major General,02/02/2017,Other Duty Travel,Subsistence Allowance,91.8
"TALBOT-RICE, ROBERT HARRY",Major General,28/02/2017,Other Duty Travel,Rail Fare,8.8
"TALBOT-RICE, ROBERT HARRY",Major General,26/01/2017,Other Duty Travel,Taxi Fare,14.4
"TALBOT-RICE, ROBERT HARRY",Major General,28/02/2017,Other Duty Travel,Taxi Fare,10.6
"TALBOT-RICE, ROBERT HARRY",Major General,25/01/2017,Other Duty Travel,Taxi Fare,10
"TICKELL, CHRISTOPHER LINLEY",Major General,10/02/2017,Other Duty Travel,Parking Fees,5.7
"TICKELL, CHRISTOPHER LINLEY",Major General,10/02/2017,Other Duty Travel,Subsistence Allowance,4.25
"TICKELL, CHRISTOPHER LINLEY",Major General,07/02/2017,Other Duty Travel,Taxi Fare,12
"TICKELL, CHRISTOPHER LINLEY",Major General,08/03/2017,Other Duty Travel,Subsistence Allowance,4
"TICKELL, CHRISTOPHER LINLEY",Major General,08/03/2017,Other Duty Travel,Taxi Fare,12
"TICKELL, CHRISTOPHER LINLEY",Major General,06/01/2017,Other Duty Travel,Subsistence Allowance,6.18
"TICKELL, CHRISTOPHER LINLEY",Major General,06/01/2017,Other Duty Travel,Taxi Fare,12
"TICKELL, CHRISTOPHER LINLEY",Major General,27/01/2017,Other Duty Travel,Motor Mileage Allowance,8.97
"TICKELL, CHRISTOPHER LINLEY",Major General,31/01/2017,Other Duty Travel,Subsistence Allowance,2.3
"TICKELL, CHRISTOPHER LINLEY",Major General,31/01/2017,Other Duty Travel,Subsistence Allowance,86.53
"TICKELL, CHRISTOPHER LINLEY",Major General,01/02/2017,Other Duty Travel,Subsistence Allowance,4.8
"TICKELL, CHRISTOPHER LINLEY",Major General,28/03/2017,Other Duty Travel,Subsistence Allowance,6.33
"TICKELL, CHRISTOPHER LINLEY",Major General,28/03/2017,Other Duty Travel,Taxi Fare,18
"TICKELL, CHRISTOPHER LINLEY",Major General,23/03/2017,Other Duty Travel,Subsistence Allowance,3.85
"TICKELL, CHRISTOPHER LINLEY",Major General,23/03/2017,Other Duty Travel,Taxi Fare,17
"TICKELL, CHRISTOPHER LINLEY",Major General,24/03/2017,Other Duty Travel,Subsistence Allowance,6.45
"TICKELL, CHRISTOPHER LINLEY",Major General,24/01/2017,Other Duty Travel,Subsistence Allowance,2
"TICKELL, CHRISTOPHER LINLEY",Major General,24/01/2017,Other Duty Travel,Taxi Fare,12
"TICKELL, CHRISTOPHER LINLEY",Major General,14/02/2017,Other Duty Travel,Subsistence Allowance,2.9
"TICKELL, CHRISTOPHER LINLEY",Major General,14/02/2017,Other Duty Travel,Taxi Fare,22
"TICKELL, CHRISTOPHER LINLEY",Major General,17/02/2017,Other Duty Travel,Parking Fees,5.7
"TICKELL, CHRISTOPHER LINLEY",Major General,17/02/2017,Other Duty Travel,Subsistence Allowance,2.9
"TICKELL, CHRISTOPHER LINLEY",Major General,23/02/2017,Other Duty Travel,Subsistence Allowance,3
"TICKELL, CHRISTOPHER LINLEY",Major General,28/02/2017,Other Duty Travel,Taxi Fare,52
"URCH, TYRONE RICHARD",Major General,25/01/2017,Miscellaneous,Prof Body Fees - Mandatory,426.4
"URCH, TYRONE RICHARD",Major General,28/02/2017,Other Duty Travel,Taxi Fare,25
"URCH, TYRONE RICHARD",Major General,26/02/2017,Other Duty Travel,Taxi Fare,25
"WARDLAW, RICHARD",Major General,10/01/2017,Change of Assignment,Subsistence Allowance,42.5
"WARDLAW, RICHARD",Major General,06/03/2017,Other Duty Travel,Subsistence Allowance,173.74
"WARDLAW, RICHARD",Major General,07/03/2017,Other Duty Travel,Subsistence Allowance,97.89
"WARDLAW, RICHARD",Major General,14/03/2017,Other Duty Travel,Subsistence Allowance,7.65
"WELCH, NICHOLAS",Major General,24/01/2017,Advances,Adv of Travel & Subsistence,1690
"WELCH, NICHOLAS",Major General,30/01/2017,Other Duty Travel,Bus Fare,7.5
"WELCH, NICHOLAS",Major General,05/02/2017,Other Duty Travel,Subsistence Allowance,1690
"WELCH, NICHOLAS",Major General,06/02/2017,Miscellaneous,"Med,Dent,Optcns,Prescrptn Fees",30.29
"WELCH, NICHOLAS",Major General,07/03/2017,Miscellaneous,"Med,Dent,Optcns,Prescrptn Fees",25
"WELCH, NICHOLAS",Major General,02/02/2017,Miscellaneous,Passport/Visa Fee,6
"WELCH, NICHOLAS",Major General,16/01/2017,Resettlement,Rail Fare,71.35
"WELCH, NICHOLAS",Major General,03/02/2017,Other Duty Travel,Taxi Fare,5.8
"WELCH, NICHOLAS",Major General,03/02/2017,Other Duty Travel,Taxi Fare,11
"WELCH, NICHOLAS",Major General,30/01/2017,Other Duty Travel,Subsistence Allowance,192.35
"WELCH, NICHOLAS",Major General,20/03/2017,Other Duty Travel,Rail Fare,19.3
"WELCH, NICHOLAS",Major General,20/03/2017,Other Duty Travel,Taxi Fare,11
"BETHELL, KEITH HUGH ROBERT",Air Vice-Marshal,11/01/2017,Other Duty Travel,Subsistence Allowance,4.4
"BETHELL, KEITH HUGH ROBERT",Air Vice-Marshal,24/01/2017,Other Duty Travel,Subsistence Allowance,5.72
"BETHELL, KEITH HUGH ROBERT",Air Vice-Marshal,06/01/2017,Other Duty Travel,Subsistence Allowance,4
"BETHELL, KEITH HUGH ROBERT",Air Vice-Marshal,01/02/2017,Other Duty Travel,Subsistence Allowance,4
"BETHELL, KEITH HUGH ROBERT",Air Vice-Marshal,20/03/2017,Other Duty Travel,Foreign Currency Exch Costs,7.75
"BETHELL, KEITH HUGH ROBERT",Air Vice-Marshal,21/03/2017,Other Duty Travel,Subsistence Allowance,34.75
"BETHELL, KEITH HUGH ROBERT",Air Vice-Marshal,20/03/2017,Other Duty Travel,Subsistence Allowance,37.37
"BETHELL, KEITH HUGH ROBERT",Air Vice-Marshal,14/03/2017,Other Duty Travel,Subsistence Allowance,11.61
"BETHELL, KEITH HUGH ROBERT",Air Vice-Marshal,06/03/2017,Other Duty Travel,Subsistence Allowance,5.25
"BETHELL, KEITH HUGH ROBERT",Air Vice-Marshal,25/01/2017,Other Duty Travel,Subsistence Allowance,13.7
"BETHELL, KEITH HUGH ROBERT",Air Vice-Marshal,22/03/2017,Other Duty Travel,Subsistence Allowance,15.37
"BETHELL, KEITH HUGH ROBERT",Air Vice-Marshal,18/01/2017,Other Duty Travel,Taxi Fare,25
"BETHELL, KEITH HUGH ROBERT",Air Vice-Marshal,22/03/2017,Other Duty Travel,Taxi Fare,16.78
"BETHELL, KEITH HUGH ROBERT",Air Vice-Marshal,14/03/2017,Other Duty Travel,Taxi Fare,25.42
"BETHELL, KEITH HUGH ROBERT",Air Vice-Marshal,21/02/2017,Other Duty Travel,Taxi Fare,13
"BETHELL, KEITH HUGH ROBERT",Air Vice-Marshal,22/02/2017,Other Duty Travel,Taxi Fare,25
"BETHELL, KEITH HUGH ROBERT",Air Vice-Marshal,13/02/2017,Other Duty Travel,Subsistence Allowance,6.15
"BETHELL, KEITH HUGH ROBERT",Air Vice-Marshal,10/01/2017,Other Duty Travel,Subsistence Allowance,8.3
"BETHELL, KEITH HUGH ROBERT",Air Vice-Marshal,18/01/2017,Other Duty Travel,Subsistence Allowance,12.43
"BETHELL, KEITH HUGH ROBERT",Air Vice-Marshal,23/01/2017,Other Duty Travel,Subsistence Allowance,12.56
"BETHELL, KEITH HUGH ROBERT",Air Vice-Marshal,01/03/2017,Other Duty Travel,Subsistence Allowance,3.85
"BRECHT, MALCOLM ANDREW BRIAN",Air Vice-Marshal,17/01/2017,Other Duty Travel,Subsistence Allowance,211.36
"BRECHT, MALCOLM ANDREW BRIAN",Air Vice-Marshal,14/02/2017,Other Duty Travel,Subsistence Allowance,383.66
"BRECHT, MALCOLM ANDREW BRIAN",Air Vice-Marshal,14/02/2017,Other Duty Travel,Parking Fees,14
"BRECHT, MALCOLM ANDREW BRIAN",Air Vice-Marshal,19/12/2016,Other Duty Travel,Parking Fees,8
"BRECHT, MALCOLM ANDREW BRIAN",Air Vice-Marshal,17/01/2017,Other Duty Travel,Parking Fees,12
"BRECHT, MALCOLM ANDREW BRIAN",Air Vice-Marshal,09/02/2017,Other Duty Travel,Subsistence Allowance,115.15
"BRECHT, MALCOLM ANDREW BRIAN",Air Vice-Marshal,17/01/2017,Other Duty Travel,Tube/Underground Fares,9.6
"BRECHT, MALCOLM ANDREW BRIAN",Air Vice-Marshal,19/12/2016,Other Duty Travel,Tube/Underground Fares,4.8
"BRECHT, MALCOLM ANDREW BRIAN",Air Vice-Marshal,14/02/2017,Other Duty Travel,Tube/Underground Fares,12
"ELLIOT, CHRISTINA REID",Air Vice-Marshal,02/03/2017,Other Duty Travel,Rail Fare,37.3
"ELLIOT, CHRISTINA REID",Air Vice-Marshal,21/02/2017,Other Duty Travel,Excess Fares,30
"ELLIOT, CHRISTINA REID",Air Vice-Marshal,28/01/2017,Other Duty Travel,Excess Fares,30
"ELLIOT, CHRISTINA REID",Air Vice-Marshal,21/01/2017,Other Duty Travel,Subsistence Allowance,996.79
"ELLIOT, CHRISTINA REID",Air Vice-Marshal,21/01/2017,Other Duty Travel,Coach Fare,61.31
"ELLIOT, CHRISTINA REID",Air Vice-Marshal,02/03/2017,Other Duty Travel,Parking Fees,7
"ELLIOT, CHRISTINA REID",Air Vice-Marshal,02/03/2017,Other Duty Travel,Taxi Fare,13
"GRAY, SUSAN CATHERINE",Air Vice-Marshal,17/11/2016,Other Duty Travel,Subsistence Allowance,130
"GRAY, SUSAN CATHERINE",Air Vice-Marshal,18/11/2016,Other Duty Travel,Taxi Fare,17
"IRVINE, LINDSAY JOHN",Air Vice-Marshal,29/09/2016,Representative Sport,Air Fare (Actual Cost),125
"KNIGHTON, RICHARD JOHN",Air Vice-Marshal,08/12/2016,Other Duty Travel,Taxi Fare,49
"KNIGHTON, RICHARD JOHN",Air Vice-Marshal,02/02/2017,Other Duty Travel,Taxi Fare,38
"KNIGHTON, RICHARD JOHN",Air Vice-Marshal,01/03/2017,Other Duty Travel,Taxi Fare,21.4
"KNIGHTON, RICHARD JOHN",Air Vice-Marshal,02/02/2017,Other Duty Travel,Taxi Fare,38
"KNIGHTON, RICHARD JOHN",Air Vice-Marshal,17/10/2016,Other Duty Travel,Subsistence Allowance,177.93
"MAYHEW, GERARD MICHAEL DAVID",Air Vice-Marshal,08/02/2017,Other Duty Travel,Subsistence Allowance,0.13
"MAYHEW, GERARD MICHAEL DAVID",Air Vice-Marshal,04/02/2017,Other Duty Travel,Subsistence Allowance,38.85
"MAYHEW, GERARD MICHAEL DAVID",Air Vice-Marshal,05/02/2017,Other Duty Travel,Subsistence Allowance,18.69
"MAYHEW, GERARD MICHAEL DAVID",Air Vice-Marshal,06/02/2017,Other Duty Travel,Subsistence Allowance,14.65
"MAYHEW, GERARD MICHAEL DAVID",Air Vice-Marshal,02/02/2017,Other Duty Travel,Parking Fees,20.16
"MAYHEW, GERARD MICHAEL DAVID",Air Vice-Marshal,08/02/2017,Other Duty Travel,Subsistence Allowance,2.05
"MAYHEW, GERARD MICHAEL DAVID",Air Vice-Marshal,04/02/2017,Other Duty Travel,Subsistence Allowance,4.73
"MAYHEW, GERARD MICHAEL DAVID",Air Vice-Marshal,21/02/2017,Other Duty Travel,Subsistence Allowance,5.77
"MAYHEW, GERARD MICHAEL DAVID",Air Vice-Marshal,20/02/2017,Other Duty Travel,Subsistence Allowance,8.12
"MAYHEW, GERARD MICHAEL DAVID",Air Vice-Marshal,06/02/2017,Other Duty Travel,Subsistence Allowance,2.05
"PARKER, GAVIN DOUGLAS ANTHONY",Air Vice-Marshal,28/01/2017,Other Duty Travel,Air Fare (Actual Cost),125
"PARKER, GAVIN DOUGLAS ANTHONY",Air Vice-Marshal,28/01/2017,Other Duty Travel,Foreign Currency Exch Costs,16.27
"PARKER, GAVIN DOUGLAS ANTHONY",Air Vice-Marshal,10/02/2017,Other Duty Travel,Subsistence Allowance,85.85
"PARKER, GAVIN DOUGLAS ANTHONY",Air Vice-Marshal,28/01/2017,Other Duty Travel,Subsistence Allowance,440.34
"PARKER, GAVIN DOUGLAS ANTHONY",Air Vice-Marshal,28/01/2017,Other Duty Travel,Taxi Fare,29.66
"PARKER, GAVIN DOUGLAS ANTHONY",Air Vice-Marshal,03/02/2017,Other Duty Travel,Rail Fare,19.8
"PARKER, GAVIN DOUGLAS ANTHONY",Air Vice-Marshal,06/02/2017,Other Duty Travel,Subsistence Allowance,11.4
"RUSSELL, GRAHAM MICHAEL",Air Vice-Marshal,01/12/2016,Other Duty Travel,Subsistence Allowance,214.72
"RUSSELL, GRAHAM MICHAEL",Air Vice-Marshal,01/03/2017,Other Duty Travel,Parking Fees,2
"RUSSELL, GRAHAM MICHAEL",Air Vice-Marshal,28/11/2016,Other Duty Travel,Foreign Currency Exch Costs,7.41
"RUSSELL, GRAHAM MICHAEL",Air Vice-Marshal,29/11/2016,Other Duty Travel,Foreign Currency Exch Costs,6.43
"RUSSELL, GRAHAM MICHAEL",Air Vice-Marshal,30/11/2016,Other Duty Travel,Foreign Currency Exch Costs,1.24
"RUSSELL, GRAHAM MICHAEL",Air Vice-Marshal,30/11/2016,Other Duty Travel,Subsistence Allowance,6.6
"RUSSELL, GRAHAM MICHAEL",Air Vice-Marshal,27/11/2016,Other Duty Travel,Foreign Currency Exch Costs,4.99
"RUSSELL, GRAHAM MICHAEL",Air Vice-Marshal,01/12/2016,Other Duty Travel,Foreign Currency Exch Costs,16.5
"RUSSELL, GRAHAM MICHAEL",Air Vice-Marshal,01/12/2016,HDT Manual,HTD (Private),121.89
"RUSSELL, GRAHAM MICHAEL",Air Vice-Marshal,01/02/2017,HDT Manual,HTD (Private),128.3
"RUSSELL, GRAHAM MICHAEL",Air Vice-Marshal,01/01/2017,HDT Manual,HTD (Private),192.45
"RUSSELL, GRAHAM MICHAEL",Air Vice-Marshal,29/11/2016,Other Duty Travel,Subsistence Allowance,34.35
"RUSSELL, GRAHAM MICHAEL",Air Vice-Marshal,28/11/2016,Other Duty Travel,Subsistence Allowance,23.21
"RUSSELL, GRAHAM MICHAEL",Air Vice-Marshal,09/12/2016,Miscellaneous,Prof Body Fees - Mandatory,378.9
"RUSSELL, GRAHAM MICHAEL",Air Vice-Marshal,27/11/2016,Other Duty Travel,Subsistence Allowance,2.7
"RUSSELL, GRAHAM MICHAEL",Air Vice-Marshal,28/11/2016,Other Duty Travel,Taxi Fare,16.41
"RUSSELL, GRAHAM MICHAEL",Air Vice-Marshal,06/03/2017,Other Duty Travel,Motor Mileage Allowance,35.25
"RUSSELL, GRAHAM MICHAEL",Air Vice-Marshal,01/03/2017,Other Duty Travel,Motor Mileage Allowance,7.5
"TUNNICLIFFE, GARRY",Air Vice-Marshal,10/01/2017,Other Duty Travel,Foreign Currency Exch Costs,15.84
"TUNNICLIFFE, GARRY",Air Vice-Marshal,10/01/2017,Other Duty Travel,Subsistence Allowance,59.61
"TUNNICLIFFE, GARRY",Air Vice-Marshal,10/01/2017,Other Duty Travel,Subsistence Allowance,26.47
"WIGSTON, MICHAEL",Air Vice-Marshal,06/02/2017,Other Duty Travel,Congestion Charge,11.5
"WIGSTON, MICHAEL",Air Vice-Marshal,06/02/2017,Other Duty Travel,Hire Car Duty Fuel Costs,28.29
